Cogmind - Beta 12 X1 *** ADVENTURER MODE // 2022.08.01 @ 23:28:43 Player: Sardaukar Result: Destroyed by B-86 Titan with Matter Neutralizer Performance ------------- Evolutions (6) 3000 Regions Visited (10) 2000 Robots Destroyed (262) 1310 Value Destroyed (8026) 8026 Prototype IDs (5) 100 Alien Tech Used (0) 0 Bonus (546) 546 TOTAL SCORE: 14982 Bonus ------- High Alert Combat Kills 654 Follower Combat Kills 35 Friendly Fire -143 Cogmind --------- Core Integrity 0/1150 Matter 19/300 Energy 99/100 System Corruption 11% Temperature Cool (9) Movement Core (50) Location -4/Factory Parts ------- > --- POWER (1) -------- (None) > --- PROPULSION (4) --- (None) > --- UTILITY (11) ----- (None) > --- WEAPON (3) ------- (None) > --- INVENTORY (5) ---- Improved Cryofiber Web Graphene Brace Long-range Tractor Beam Antimatter Cannon Antimatter Cannon Peak State ------------ > --- POWER ------------ Light Antimatter Reactor > --- PROPULSION ------- Light Treads Improved Treads Improved Treads Medium Treads > --- UTILITY ---------- Improved Cryofiber Web Huge Storage Unit Large Matter Pod Machine Analyzer Enhanced Optical Array Improved Terrain Scanner Improved Terrain Scan Processor Improved Utility Shielding Improved Light Armor Plating Hacking Suite Dynamic Insulation System > --- WEAPON ----------- Gauss Cannon Gauss Cannon Chainsword > --- INVENTORY -------- Micro Nuclear Core Improved Treads Aluminum Leg High-capacity Storage Unit Advanced Signal Interpreter Improved Melee Analysis Suite Graphene Brace Long-range Tractor Beam Field Recycling Unit High-powered Shotgun Improved Heavy Machine Gun Gauss Cannon Gauss Cannon Antimatter Cannon Antimatter Cannon Antimatter Cannon Heavy Missile Launcher Heavy Missile Launcher Mini Smartbomb Launcher Datajack [Rating: 70] Favorites ----------- Power Heavy Ion Engine Engine Heavy Ion Engine Power Core Micro Nuclear Core Reactor Light Antimatter Reactor Propulsion Light Treads Treads Light Treads Leg Aluminum Leg Wheel Wheel Utility Large Matter Pod Device Cooling System Storage Large Matter Pod Processor Improved Terrain Scan Processor Hackware Hacking Suite Protection Improved Utility Shielding Weapon Gauss Rifle Energy Gun Medium Laser Ballistic Gun Gauss Rifle Ballistic Cannon Gauss Cannon Launcher Grenade Launcher Slashing Weapon Chainsword Build | -11 -10 -9 -9 -9 -8 -8 -7 -6 -5 -4 ------- Run | Scr Mat Mat Min Exi Min Mat Fac Fac Fac Fac Slots Evolved 12 | . . 2 . . . 2 2 2 2 2 Power . | . . . . . . . . . . . Propulsion 2 | . . 1 . . . . 1 . . . Utility 9 | . . 1 . . . 2 1 1 2 2 Weapon 1 | . . . . . . . . 1 . . Parts Attached 182 | 6 10 31 . . . 14 40 29 23 29 Power 15 | 1 1 7 . . . . 2 1 1 2 Engine 13 | 1 1 7 . . . . 2 1 1 . Core 1 | . . . . . . . . . . 1 Reactor 1 | . . . . . . . . . . 1 Propulsion 37 | 2 . 10 . . . . 11 6 4 4 Treads 27 | 2 . 8 . . . . 5 6 4 2 Leg 7 | . . 2 . . . . 5 . . . Wheel 3 | . . . . . . . 1 . . 2 Hover . | . . . . . . . . . . . Flight . | . . . . . . . . . . . Utility 45 | 1 3 4 . . . 2 9 13 7 6 Device 17 | . 2 1 . . . . 2 5 3 4 Storage 6 | 1 1 2 . . . 1 . . . 1 Processor 6 | . . . . . . . 4 2 . . Hackware 3 | . . . . . . . . 2 1 . Protection 13 | . . 1 . . . 1 3 4 3 1 Artifact . | . . . . . . . . . . . Weapon 85 | 2 6 10 . . . 12 18 9 11 17 Energy Gun 3 | 1 1 1 . . . . . . . . Energy Cannon . | . . . . . . . . . . . Ballistic Gun 35 | 1 1 7 . . . 5 10 5 5 1 Ballistic Cannon 12 | . . . . . . . . . 3 9 Launcher 26 | . 4 2 . . . 7 4 2 3 4 Special Weapon . | . . . . . . . . . . . Impact Weapon . | . . . . . . . . . . . Slashing Weapon 9 | . . . . . . . 4 2 . 3 Piercing Weapon . | . . . . . . . . . . . Special Melee Weapon . | . . . . . . . . . . . Unidentified Prototypes 5 | . . 3 . . . . . . 1 1 Parts Lost 41 | . 1 5 . . . 2 6 3 5 19 Power 4 | . . 1 . . . . 1 . . 2 Propulsion 13 | . . 1 . . . . 2 1 2 7 Utility 12 | . 1 1 . . . 1 1 1 2 5 Weapon 12 | . . 2 . . . 1 2 1 1 5 Highest Loss Streak 5 | . 1 3 . . . 2 5 1 3 5 To Critical Strikes 1 | . . . . . . . . . 1 . Average Slot Usage (%) 94 | . 92 97 100 100 100 89 94 99 97 78 Engine 8 | . 14 10 11 11 11 9 6 6 4 . Treads 24 | . 28 29 33 33 33 27 23 20 22 7 Leg 1 | . . . . . . . 2 5 . . Device 7 | . 6 7 11 11 11 9 5 4 7 15 Storage 15 | . 15 22 22 22 22 18 15 13 11 9 Processor 9 | . . . . . . . 19 22 17 13 Hackware 1 | . . . . . . . . 3 5 4 Protection 3 | . . 3 . . . 8 3 1 5 5 Ballistic Gun 12 | . 1 20 22 22 22 11 11 18 7 1 Ballistic Cannon 1 | . . . . . . . . . 6 8 Launcher 4 | . 22 1 . . . 6 1 . 1 . Naked Turns 89 | . . . . . . . . . . 89 Heaviest Build 125 | 14 34 39 39 39 39 74 70 71 83 125 Greatest Support 94 | 40 40 66 60 60 60 60 85 83 94 94 Greatest Overweight (x) 38 | . . 12 . . . 1 5 2 1 38 Average Overweight (x) . | . . . . . . . . . . 4 Largest Inventory Capacity 25 | 8 15 15 15 15 15 20 20 20 20 25 Average Capacity 17 | 5 14 15 15 15 15 17 20 20 20 22 Most Carried 20 | 1 7 15 15 15 15 15 20 20 20 20 Average Carried 14 | . 3 13 14 15 15 14 16 19 17 16 Final Capacity 20 | 8 15 15 15 15 15 20 20 20 20 5 Final Carried 20 | 1 7 15 15 15 15 14 20 20 20 5 Class Distribution -------------------- 60% | Mutant 12% | Hacker-Skirmisher 10% | Scavenger-Skirmisher 6% | Hacker-Assassin 3% | Scavenger-Mutant Dominant Class ---------------- Mutant | -10/Materials Mutant | -9/Materials Mutant | -9/Mines Mutant | -9/Exiles Mutant | -8/Mines Mutant | -8/Materials Mutant | -7/Factory Scavenger-Skirmisher | -6/Factory Hacker-Skirmisher | -5/Factory Hacker-Skirmisher | -4/Factory Resources | -11 -10 -9 -9 -9 -8 -8 -7 -6 -5 -4 ----------- Run | Scr Mat Mat Min Exi Min Mat Fac Fac Fac Fac Matter Collected 6266 | 257 494 1438 . . . 715 1100 810 874 578 Remotely 73 | . . . . . . . . . . 73 Salvage Created 8573 | 11 716 2073 . . . 1165 1652 1245 1001 710 Parts 462 | 3 61 130 . . . 65 82 51 42 28 Haulers Intercepted 15 | . 1 6 . . . 3 2 1 1 1 Recyclers Shooed 15 | . 3 3 . . . 2 1 3 . 3 Parts Field Recycled . | . . . . . . . . . . . Retrieved Matter . | . . . . . . . . . . . Parts Self-Destructed . | . . . . . . . . . . . Prevented . | . . . . . . . . . . . Kills | -11 -10 -9 -9 -9 -8 -8 -7 -6 -5 -4 ------- Run | Scr Mat Mat Min Exi Min Mat Fac Fac Fac Fac Combat Hostiles Destroyed 158 | . 15 34 . . . 27 31 19 18 14 Guns 82 | . 2 33 . . . 4 22 9 10 2 Cannons 7 | . . . . . . . . . 1 6 AOE 69 | . 13 1 . . . 23 9 10 7 6 Classes Destroyed 15 | 1 6 3 . . . 1 3 . 1 . Worker 16 | 1 4 . . . . 5 3 1 2 . Builder 20 | . 8 2 . . . 3 3 1 2 1 Tunneler 3 | . . . . . . 3 . . . . Hauler 15 | . 1 6 . . . 3 2 1 1 1 Recycler 29 | . 7 7 . . . 7 3 2 1 2 Mechanic 3 | . . 1 . . . 1 1 . . . Operator 4 | . . 2 . . . . 1 . . 1 Watcher 15 | . 3 5 . . . 3 . 1 2 1 Swarmer 31 | . 6 8 . . . 10 1 . 4 2 Grunt 90 | . 9 20 . . . 14 23 13 5 6 Brawler 2 | . . . . . . . . . 2 . Duelist 3 | . . . . . . . 3 . . . Sentry 17 | . . 6 . . . 3 3 4 1 . Hunter 5 | . . . . . . . 1 . 4 . Programmer 11 | . . . . . . . 1 2 2 6 Best Kill Streak 18 | 1 12 10 . . . 18 5 5 5 7 Combat Bots Only 9 | . 5 6 . . . 9 4 4 4 5 Max Kills in Single Turn 4 | 1 3 2 . . . 4 3 2 3 3 Gunslinging 1 | . . 1 . . . . . . . . Exploded 3 | . 3 1 . . . 3 2 2 2 3 Melee . | . . . . . . . . . . . Uniques/NPCs Destroyed . | . . . . . . . . . . . Combat | -11 -10 -9 -9 -9 -8 -8 -7 -6 -5 -4 -------- Run | Scr Mat Mat Min Exi Min Mat Fac Fac Fac Fac Damage Taken 9869 | . 321 1356 . . . 848 1975 829 1678 2862 Core 2054 | . 83 190 . . . 90 306 76 148 1161 Absorbed by Shields 108 | . . . . . . . 108 . . . Redirected to Shielding 154 | . . 51 . . . . . . 51 52 Regen/Repaired (Parts) 145 | . 22 . . . . . . 123 . . Core Remaining (%) 76 | 100 66 . . . 52 83 56 91 85 . Volleys Fired 454 | 3 47 127 . . . 46 94 49 46 42 Largest 3 | 2 2 2 . . . 2 2 3 3 3 Hottest 144 | 70 70 70 . . . 60 63 86 144 144 Shots Fired 931 | 6 73 253 . . . 83 174 127 111 104 Gun 667 | 6 11 250 . . . 26 158 118 80 18 Cannon 100 | . . . . . . . . . 22 78 Launcher 164 | . 62 3 . . . 57 16 9 9 8 Special . | . . . . . . . . . . . Kinetic 750 | 3 3 244 . . . 26 158 118 102 96 Thermal 17 | 3 8 6 . . . . . . . . Explosive 164 | . 62 3 . . . 57 16 9 9 8 Electromagnetic . | . . . . . . . . . . . Robot Hit Streak 28 | 3 12 28 . . . 19 27 26 23 11 Robot Miss Streak 5 | 1 2 5 . . . 3 3 1 4 3 Penetration Max 1 | . . . . . . . 1 . 1 1 Secondary Targets 7 | . . 3 . . . . 2 . 2 . Max Gunslinging Chain 1 | . . 1 . . . . 1 . 1 . Shots Hit Robots 699 | 4 31 197 . . . 52 141 105 90 79 Core Hits 543 | 2 62 86 . . . 103 99 63 83 45 Critical Kills 3 | . . . . . . . 1 . 2 . Critical Parts Destroyed 8 | . . 1 . . . . 2 4 1 . Critical Strikes 23 | . . 1 . . . . 4 4 6 8 Destroy 12 | . . 1 . . . . 4 4 3 . Blast 11 | . . . . . . . . . 3 8 Melee Attacks 23 | . . . . . . . 12 5 1 5 Impact . | . . . . . . . . . . . Slashing 23 | . . . . . . . 12 5 1 5 Piercing . | . . . . . . . . . . . Sneak Attacks 1 | . . . . . . . . 1 . . Combat Hostiles . | . . . . . . . . . . . Follow-up Attacks . | . . . . . . . . . . . Damage Inflicted 24131 | 61 2307 3584 . . . 3802 4537 3352 3230 3258 Guns 10317 | 61 115 3189 . . . 373 2714 1975 1458 432 Cannons 2397 | . . . . . . . . . 523 1874 Explosions 11274 | . 2184 354 . . . 3429 1821 1308 1229 949 Melee 69 | . . . . . . . . 69 . . Ramming 74 | . 8 41 . . . . 2 . 20 3 Kinetic 12526 | 37 28 3112 . . . 373 2714 1975 1981 2306 Thermal 1000 | 24 87 235 . . . . 84 182 388 . Explosive 10399 | . 2184 196 . . . 3429 1737 1126 778 949 Electromagnetic 63 | . . . . . . . . . 63 . Impact . | . . . . . . . . . . . Slashing 69 | . . . . . . . . 69 . . Piercing . | . . . . . . . . . . . Highest Corruption 11 | . . 1 1 1 1 . . . 6 11 Average Corruption 2 | . . 1 1 1 1 . . . 4 3 Corruption Purged 5 | . . . . . . . . . 5 . Corruption Blocked . | . . . . . . . . . . . Effects 52 | . . 4 . 6 . . . . 24 18 Message Errors 9 | . . 2 . 2 . . . . 2 3 Matter Fused 10 | . . . . . . . . . 6 4 Heat Flow Errors 12 | . . . . 1 . . . . 9 2 Energy Discharges 2 | . . . . . . . . . . 2 Data Loss (minor) 11 | . . 2 . 2 . . . . 4 3 Data Loss (major) 2 | . . . . 1 . . . . 1 . Misfires 1 | . . . . . . . . . . 1 Misdirections 1 | . . . . . . . . . . 1 Weapon Failures 4 | . . . . . . . . . 2 2 Overload Shots . | . . . . . . . . . . . Overflow Damage 472 | . 65 78 . . . 48 77 10 116 78 Projectiles 58 | . . . . . . . . . . 58 Explosions 414 | . 65 78 . . . 48 77 10 116 20 Melee . | . . . . . . . . . . . Knockbacks 18 | . . . . . . . . . 2 16 Impact . | . . . . . . . . . . . Kinetic 18 | . . . . . . . . . 2 16 Secondary . | . . . . . . . . . . . Self-Inflicted Damage 503 | . 50 63 . . . 83 185 . 121 1 Shots 23 | . 5 1 . . . 7 6 . 4 . Rammed 17 | . 1 12 . . . 1 1 . 1 1 Targets Rammed 17 | . 1 12 . . . 1 1 . 1 1 Kicked . | . . . . . . . . . . . Crushed . | . . . . . . . . . . . Highest Temperature 334 | 27 94 54 . 61 . 6 14 53 334 80 Average Temperature 71 | 14 23 32 . 40 . 6 9 10 128 54 Received Heat Transfer 3184 | . 186 585 . . . 432 809 495 207 470 Siege Activations . | . . . . . . . . . . . Robots Corrupted . | . . . . . . . . . . . Combat Hostiles . | . . . . . . . . . . . Parts Fried . | . . . . . . . . . . . Impact Corruptions . | . . . . . . . . . . . Robots Melted . | . . . . . . . . . . . Combat Hostiles . | . . . . . . . . . . . Parts Melted 2 | . 1 1 . . . . . . . . Heat Transferred 1105 | 74 259 322 . . . . 100 100 250 . Parts Sabotaged . | . . . . . . . . . . . Parts Stolen . | . . . . . . . . . . . Parts Stripped . | . . . . . . . . . . . Power Chain Reactions . | . . . . . . . . . . . Missiles Intercepted . | . . . . . . . . . . . Alert | -11 -10 -9 -9 -9 -8 -8 -7 -6 -5 -4 ------- Run | Scr Mat Mat Min Exi Min Mat Fac Fac Fac Fac Peak Influence 821 | 5 647 470 155 . . 821 614 290 540 608 Initial 241 | . 2 47 155 . . . 241 217 14 223 Average 238 | . 242 114 155 . . 498 389 129 206 378 Maximum Alert Level 3 | . 2 2 . . . 3 2 1 2 2 Low Security (%) 45 | 100 33 89 100 . 100 17 . 62 50 . Level 1 35 | . 57 8 . . . 16 49 37 45 46 Level 2 19 | . 8 1 . . . 62 50 . 4 53 Level 3 . | . . . . . . 3 . . . . Level 4 . | . . . . . . . . . . . Level 5 . | . . . . . . . . . . . High Security . | . . . . . . . . . . . Max Security . | . . . . . . . . . . . Squads Dispatched 49 | . 5 7 . . . 5 10 10 5 7 Investigation 20 | . 5 6 . . . 2 2 4 . 1 Extermination 6 | . . . . . . . 1 3 1 1 Reinforcement 10 | . . 1 . . . 1 4 2 2 . Assault 3 | . . . . . . 1 . . 1 1 Garrison 10 | . . . . . . 1 3 1 1 4 Intercept . | . . . . . . . . . . . Searches Triggered . | . . . . . . . . . . . Construction Impeded 5 | . . . . . . 1 2 1 1 . Haulers Reinforced 1 | . . . . . . . 1 . . . Active Scanning Responses . | . . . . . . . . . . . Cargo Convoy Interrupts 2 | . . . . . . . . 1 . 1 Stealth | -11 -10 -9 -9 -9 -8 -8 -7 -6 -5 -4 --------- Run | Scr Mat Mat Min Exi Min Mat Fac Fac Fac Fac Distress Signals 7 | . 1 2 . . . 3 . 1 . . Communications Jammed . | . . . . . . . . . . . Distress Signals . | . . . . . . . . . . . Times Spotted 227 | . 20 49 . . 2 34 35 24 25 38 Peak Tracking Total 13 | . 4 7 . . 3 6 4 5 4 13 Tactical Retreats 9 | . . 1 . . . . . 2 2 4 Traps | -11 -10 -9 -9 -9 -8 -8 -7 -6 -5 -4 ------- Run | Scr Mat Mat Min Exi Min Mat Fac Fac Fac Fac Traps Triggered 5 | . 2 1 . . . . 1 1 . . Indirectly . | . . . . . . . . . . . Trap Hack Attempts . | . . . . . . . . . . . Triggered . | . . . . . . . . . . . Disarmed . | . . . . . . . . . . . Reprogrammed . | . . . . . . . . . . . Reused . | . . . . . . . . . . . Traps Extracted . | . . . . . . . . . . . Installed . | . . . . . . . . . . . Triggered 3 | . . . . . . . . 3 . . Machines | -11 -10 -9 -9 -9 -8 -8 -7 -6 -5 -4 ---------- Run | Scr Mat Mat Min Exi Min Mat Fac Fac Fac Fac Machines Disabled 43 | . 12 5 . . . 3 10 4 9 . Max in Single Turn 9 | . 2 4 . . . 1 9 3 5 . Garrison Access 2 | . . . . . . . . 1 1 . Machines Sabotaged 2 | . 1 1 . . . . . . . . Garrisons Compromised 1 | . . . . . . . . 1 . . Overloaded Fab Kills . | . . . . . . . . . . . Hacking | -11 -10 -9 -9 -9 -8 -8 -7 -6 -5 -4 --------- Run | Scr Mat Mat Min Exi Min Mat Fac Fac Fac Fac Machines Accessed 48 | . 11 8 . 2 . 3 7 8 7 2 Terminals 25 | . 8 5 . . . 2 2 3 4 1 Fabricators 8 | . . . . . . . 3 3 2 . Repair Stations 3 | . 1 1 . . . . . 1 . . Recycling Units 6 | . 2 2 . . . 1 1 . . . Scanalyzers 1 | . . . . . . . 1 . . . Garrison Access 3 | . . . . . . . . 1 1 1 Total Hacks 122 | . 37 19 . 6 . 8 13 19 16 4 Successful 69 | . 21 11 . 6 . 5 8 9 7 2 Failed 53 | . 16 8 . . . 3 5 10 9 2 Catastrophic 8 | . 3 2 . . . 1 1 1 . . Database Lockouts . | . . . . . . . . . . . Manual 58 | . 19 11 . . . 4 1 7 12 4 Terminals 78 | . 29 16 . . . 7 6 6 11 3 Fabricators 15 | . . . . . . . 4 8 3 . Repair Stations 6 | . 2 1 . . . . . 3 . . Recycling Units 10 | . 6 2 . . . 1 1 . . . Scanalyzers 2 | . . . . . . . 2 . . . Garrison Access 5 | . . . . . . . . 2 2 1 Terminal Hacks 35 | . 11 7 . 6 . 4 2 2 2 1 Record 6 | . . . . 6 . . . . . . Part Schematic 2 | . . . . . . 2 . . . . Robot Analysis 3 | . 2 1 . . . . . . . . Level Access Points 3 | . 1 . . . . 1 1 . . . Terminal Index 2 | . . . . . . . . . 1 1 Alert Level 4 | . 1 1 . . . 1 . . 1 . Unreport Threat 7 | . 3 2 . . . . 1 1 . . Locate Traps 1 | . . . . . . . . 1 . . Dispatch Records 2 | . 1 1 . . . . . . . . Security Status 1 | . . 1 . . . . . . . . Patrol Status 1 | . 1 . . . . . . . . . Recall Investigation 1 | . 1 . . . . . . . . . Registered Components 1 | . 1 . . . . . . . . . Zone Layout 1 | . . 1 . . . . . . . . Fabricator Hacks 8 | . . . . . . . 3 4 1 . Network Status 2 | . . . . . . . 1 . 1 . Load Schematic 2 | . . . . . . . . 2 . . Build 4 | . . . . . . . 2 2 . . Repair Station Hacks 4 | . 2 . . . . . . 2 . . Scan Component 2 | . 1 . . . . . . 1 . . Repair 2 | . 1 . . . . . . 1 . . Recycling Unit Hacks 5 | . 5 . . . . . . . . . Process 1 | . 1 . . . . . . . . . Report Inventory 1 | . 1 . . . . . . . . . Retrieve Matter 3 | . 3 . . . . . . . . . Scanalyzer 2 | . . . . . . . 2 . . . Insert Component 1 | . . . . . . . 1 . . . Analyze 1 | . . . . . . . 1 . . . Garrison Access Hacks 1 | . . . . . . . . 1 . . Seal Access 1 | . . . . . . . . 1 . . Unauthorized Hacks 13 | . 3 4 . . . 1 1 . 3 1 Terminals 4 | . 2 1 . . . . . . 1 . Botnet 1 | . . . . . . . . . 1 . Sabotage 2 | . 1 1 . . . . . . . . Search 1 | . 1 . . . . . . . . . Fabricators 1 | . . . . . . . . . 1 . Fabnet 1 | . . . . . . . . . 1 . Repair Stations 1 | . . 1 . . . . . . . . Mechanics 1 | . . 1 . . . . . . . . Recycling Units 5 | . 1 2 . . . 1 1 . . . Tunnel 5 | . 1 2 . . . 1 1 . . . Scanalyzers . | . . . . . . . . . . . Garrison Access 2 | . . . . . . . . . 1 1 Redirect 1 | . . . . . . . . . 1 . Watchers 1 | . . . . . . . . . . 1 Data Cores Recovered . | . . . . . . . . . . . Used . | . . . . . . . . . . . Hacking Detections 34 | . 7 4 . . . 2 5 7 7 2 Full Trace Events 12 | . 3 3 . . . 1 1 3 . 1 Feedback Events 1 | . . 1 . . . . . . . . Corruption 1 | . . 1 . . . . . . . . Feedback Blocked . | . . . . . . . . . . . Robot Schematics Acquired . | . . . . . . . . . . . Robots Built 4 | . . . . . . . 4 . . . Authchips . | . . . . . . . . . . . Time 192 | . . . . . . . 192 . . . Total Robot Build Rating 13 | . . . . . . . 13 . . . Part Schematics Acquired 3 | . . . . . . 2 1 . . . Parts Built 2 | . . . . . . . . 2 . . Authchips . | . . . . . . . . . . . Time 72 | . . . . . . . . 72 . . Total Part Build Rating 6 | . . . . . . . . 6 . . Parts Repaired 2 | . 1 . . . . . . 1 . . Time 42 | . 26 . . . . . . 16 . . Parts Recycled . | . . . . . . . . . . . Recycled Matter 4 | . 4 . . . . . . . . . Retrieved Matter 4 | . 4 . . . . . . . . . Retrieved Components . | . . . . . . . . . . . Parts Scanalyzed 1 | . . . . . . . 1 . . . Part Schematics Acquired 1 | . . . . . . . 1 . . . Parts Damaged . | . . . . . . . . . . . Bothacking | -11 -10 -9 -9 -9 -8 -8 -7 -6 -5 -4 ------------ Run | Scr Mat Mat Min Exi Min Mat Fac Fac Fac Fac Used RIF Installer . | . . . . . . . . . . . Robots Hacked 3 | . . . . . . . . . . 3 Non-combat . | . . . . . . . . . . . Combat 3 | . . . . . . . . . . 3 Robot Hacks Applied . | . . . . . . . . . . . Relay Couplers Released 4 | . . . . . . . . . 1 3 Machine Destruction 1 | . . . . . . . . . 1 . Programmers 3 | . . . . . . . . . . 3 Fabnet Peak Effective % 3 | . . . . . . . . . . 3 Autooverrided 3 | . . . . . . . . . . 3 Robots Rewired 1 | . . . . . . . . . . 1 Allies Hacked 3 | . . . . . . . . . . 3 Hacks Repelled . | . . . . . . . . . . . Allies | -11 -10 -9 -9 -9 -8 -8 -7 -6 -5 -4 -------- Run | Scr Mat Mat Min Exi Min Mat Fac Fac Fac Fac Total Allies 8 | . . . . . . . 4 . . 4 Largest Group 3 | . . . . . . . 3 . . 1 Highest-Rated Group 72 | . . . . . . . 72 . . 68 Highest-Rated Ally 68 | . . . . . . . 40 . . 68 Total Orders . | . . . . . . . . . . . Ally Attacks 21 | . . . . . . . 15 . . 6 Total Damage 506 | . . . . . . . 129 . . 377 Kills 1 | . . . . . . . 1 . . . Allies Corrupted 2 | . . . . . . . . . . 2 Allies Melted . | . . . . . . . . . . . Intel | -11 -10 -9 -9 -9 -8 -8 -7 -6 -5 -4 ------- Run | Scr Mat Mat Min Exi Min Mat Fac Fac Fac Fac Robot Analysis Total 3 | . 2 1 . . . . . . . . Derelict Logs Recovered . | . . . . . . . . . . . Drone Launches . | . . . . . . . . . . . Drone Recoveries . | . . . . . . . . . . . Exploration | -11 -10 -9 -9 -9 -8 -8 -7 -6 -5 -4 ------------- Run | Scr Mat Mat Min Exi Min Mat Fac Fac Fac Fac Turns Passed 10936 | 161 1644 2265 87 408 41 826 1529 1978 1019 978 Spaces Moved 5110 | 93 885 1068 51 241 25 341 620 861 507 418 Core 151 | 5 . 2 . . . . . . . 144 Treads 4490 | 88 885 1032 51 241 25 341 532 664 507 124 Legs 267 | . . 34 . . . . 36 197 . . Wheels 202 | . . . . . . . 52 . . 150 Hover . | . . . . . . . . . . . Flight . | . . . . . . . . . . . Fastest Speed 50 | 50 160 160 170 170 170 170 155 160 160 50 Average Speed 169 | 154 160 166 170 170 170 197 184 167 160 176 Slowest Speed 1950 | 160 160 650 170 170 170 250 320 260 240 1950 Overloaded Moves . | . . . . . . . . . . . Propulsion Burnouts . | . . . . . . . . . . . Robots Hopped . | . . . . . . . . . . . Cave-ins Triggered 1 | . . . . . . . . . 1 . Exploration Rate (%) 32 | 5 88 71 16 59 19 33 17 24 16 12 Regions Visited 10 Branch Regions 3 Pre-discovered Areas 5 | . 1 2 . . . 1 1 . . . Known Exits Taken 3 | . 1 . . . . 1 1 . . . Unknown Exits Taken 7 | 1 . 1 1 1 1 . . 1 1 . Scrap Searched . | . . . . . . . . . . . Spaces Dug 47 | . . . . . . . 10 4 26 7 Terrain Destroyed 918 | . 265 39 . . . 203 85 94 144 88 Melee 20 | . . . . . . . 10 4 1 5 Projectile 26 | . . . . . . . 3 1 2 20 AOE 872 | . 265 39 . . . 203 72 89 141 63 Terrain Rammed . | . . . . . . . . . . . Walls Destroyed . | . . . . . . . . . . . Machines Disabled . | . . . . . . . . . . . Actions | -11 -10 -9 -9 -9 -8 -8 -7 -6 -5 -4 --------- Run | Scr Mat Mat Min Exi Min Mat Fac Fac Fac Fac Total 6437 | 102 1036 1306 52 240 24 411 802 1295 618 551 Wait 481 | . 88 7 . . . 1 18 314 24 29 Move 5099 | 92 884 1067 50 240 24 340 619 860 505 418 Hop . | . . . . . . . . . . . Pick Up 85 | 1 4 26 1 . . 5 15 18 8 7 Fast Attach 43 | 6 4 13 . . . . 6 6 4 4 Attach 40 | . . 5 . . . 2 11 6 7 9 Detach 5 | . 1 1 . . . . 1 1 . 1 Swap 99 | . 6 13 . . . 12 23 17 12 16 Drop 73 | . 1 35 1 . . 4 2 19 9 2 Fire 454 | 3 47 127 . . . 46 94 49 46 42 Melee 23 | . . . . . . . 12 5 1 5 Ram 1 | . . . . . . . . . . 1 Kick . | . . . . . . . . . . . Crush 16 | . 1 12 . . . 1 1 . 1 . Escape Stasis 1 | . . . . . . . . . 1 . Rewire 17 | . . . . . . . . . . 17 Trap . | . . . . . . . . . . . Miscellaneous . | . . . . . . . . . . . Route ------- -11/Scrapyard -10/Materials (discovered 4 exits: *Mat x3 / [*Min]) -9/Materials (discovered 4 exits: *Mat / [*Min x2] / [*Sto]) -9/Mines -9/Exiles -8/Mines (discovered 2 exits: *Mat x2) -8/Materials (discovered 3 exits: *Fac x3) -7/Factory (discovered 4 exits: *Fac x4) -6/Factory -5/Factory -4/Factory History --------- Turn | Location | Event 3 | -11/Scrapyard | Discovered new exit (range 15) 162 | -11/Scrapyard | Entered Materials 215 | -10/Materials | Identified exit to Materials 342 | -10/Materials | Build established: Mutant 993 | -10/Materials | Repaired Grenade Launcher 1381 | -10/Materials | Discovered new exit (range 15) 1806 | -10/Materials | Entered another Materials area 1806 | -9/Materials | Evolved 2 slots: Propulsion x1, Utility x1 2016 | -9/Materials | Discovered new exit (range 12) 2034 | -9/Materials | Lost 3 parts (1p2w) 2760 | -9/Materials | Discovered new exit (range 14) 3106 | -9/Materials | Discovered new exit (range 7) 4054 | -9/Materials | Discovered new exit (range 11) 4071 | -9/Materials | Entered Mines 4088 | -9/Mines | Met a Derelict bent on vengeance 4118 | -9/Mines | Received a Rocket Launcher from a helpful Derelict 4149 | -9/Mines | Deemed a non-threat by the Exiles lab entrance 4151 | -9/Mines | Discovered new exit (range 5) 4158 | -9/Mines | Entered Exiles 4199 | -9/Exiles | Met 8R-AWN 4228 | -9/Exiles | Met EX-HEX 4279 | -9/Exiles | Met EX-BIN 4483 | -9/Exiles | Met EX-DEC 4543 | -9/Exiles | Discovered new exit (range 14) 4566 | -9/Exiles | Entered Mines 4587 | -8/Mines | Discovered new exit (range 13) 4607 | -8/Mines | Discovered new exit (range 14) 4607 | -8/Mines | Entered Materials 4607 | -8/Materials | Evolved 2 slots: Utility x2 4678 | -8/Materials | Garrison activated, responded to threat 4698 | -8/Materials | Identified exit to Factory 4814 | -8/Materials | Destroyed 7 combat bots 4973 | -8/Materials | Destroyed 9 combat bots 5407 | -8/Materials | First assault squad dispatched 5433 | -8/Materials | Entered Factory 5433 | -7/Factory | Evolved 2 slots: Propulsion x1, Utility x1 6299 | -7/Factory | Fabricated G-47 Trooper? 6348 | -7/Factory | P-60 Hacker assimilated allied Trooper 4b 6398 | -7/Factory | Identified exit to Factory 6425 | -7/Factory | Fabricated I-36 Angel (x1) 6649 | -7/Factory | Garrison activated, responded to threat 6729 | -7/Factory | Lost 5 parts (1p1n1u2w) 6962 | -7/Factory | Entered another Factory area 6962 | -6/Factory | Evolved 2 slots: Utility x1, Weapon x1 7278 | -6/Factory | Garrison activated, responded to threat 7287 | -6/Factory | Build established: Scavenger-Skirmisher 7518 | -6/Factory | Fabricated Hacking Suite (x1) 7765 | -6/Factory | Cargo convoy interrupted 8179 | -6/Factory | Fabricated Hacking Suite (x1) 8886 | -6/Factory | Repaired Imp. Treads 8906 | -6/Factory | Discovered new exit (range 17) 8940 | -6/Factory | Entered another Factory area 8940 | -5/Factory | Evolved 2 slots: Utility x2 8945 | -5/Factory | Build established: Hacker-Assassin 9189 | -5/Factory | Crushed by falling debris 9220 | -5/Factory | Lost 3 parts (1n1u1w) 9490 | -5/Factory | Build established: Hacker-Skirmisher 9569 | -5/Factory | Found Prototype Launcher 9711 | -5/Factory | Discovered new exit (range 20) 9959 | -5/Factory | Entered another Factory area 9959 | -4/Factory | Evolved 2 slots: Utility x2 10293 | -4/Factory | Lost 4 parts (3n1w) 10371 | -4/Factory | Garrison activated, responded to threat 10410 | -4/Factory | Lost 5 parts (1p3n1u) 10477 | -4/Factory | Local machine network offline 10709 | -4/Factory | First assault squad dispatched 10817 | -4/Factory | Lost 4 parts (1n2u1w) 10848 | -4/Factory | Released all parts (8) 10857 | -4/Factory | Core integrity fell below 50% 10871 | -4/Factory | Cargo convoy interrupted 10871 | -4/Factory | Garrison activated, responded to threat 10873 | -4/Factory | Lost 4 parts (1p2u1w) 10908 | -4/Factory | System corruption reached 10% 10910 | -4/Factory | Core integrity fell below 20% 10936 | -4/Factory | Spotted B-86 Titan 10937 | -4/Factory | Destroyed by B-86 Titan with Matter Neutralizer Last Messages --------------- 10914_ P-70 Sage hacks Sentinel 7a, rebooting. 10915_ K-01 Serf collects debris. 10916_ Reactivated Sentinel 7a. 10916_ P-70 Sage hacks Sentinel 7a, rebooting. 10917_ Reactivated Sentinel 7a. 10917_ K-01 Serf pushes H-77 Assassin. 10918_ K-01 Serf pushes P-70 Sage. 10918_ Penetrated by Slug. 10919_ Sentinel 7a system terminally corrupted. 10919_ Slammed into K-01 Serf. 10919_ K-01 Serf collects debris. 10920_ K-01 Serf latches onto H-77 Assassin. 10920_ K-01 Serf collects debris. 10922_ K-01 Serf pushes S-27 Virus. 10923_ K-01 Serf pushes H-77 Assassin. 10924_ K-01 Serf collects debris. 10925_ System corrupted: Component data lost. 10933_ K-01 Serf cleans the Power Conduit. 10934_ K-01 Serf cleans the Terminal. 10936_ K-01 Serf cleans the Power Conduit. Map ----- +----------------------------------------------------+ | ?????????????????????????????????????????????????? | | ?????????????????????????????????????????????????? | | ?????????????????????????????????????????????????? | | ?????????????????????????????????????????????????? | | ?????????????????????????????????????????????????? | | ?????????????????????????????????????????????????? | | ???????????????????????????????????????????""????? | | ??????????????????????????????????????????? ????? | | ???????????????????????????????????????#+##+###### | | ???????????????????????????????????????# | | ???????????????????????????????????????# ###### | | ???????????????????????????????????????# #????? | | ???????????????????????????????????????# #????# | | ???????????????????????????????????????# #????# | | ???????????????????????????????????????# #????# | | ???????????????????????????????????????# #????# | | ???????????????????????????????????????# #????# | | ???????????????????????????????????????# #????# | | ???????????????????????????????????????# #????? | | ???????????????????????????????????????# #????? | | ??????????????????###########+########## #????? | | ???????????## """"" p #????? | | ??????????? ""T"" ##########????? | | ?????????? kt #?????????????? | | ?????????? #?????????????? | | ????????????#k k @ #?????????????? | | ????????????# ######### #?????????????? | | ??????????#BB k ????????# #?????????????? | | ???????????BB " " " " ?????????# #?????????????? | | ???????????#?u " " " " ?????????#+#?????????????? | | ??????????????? " " " "??????????? ??????????????? | | ????????????????? " " "??????????? ??????????????? | | ????????????????? " " ???????????? ??????????????? | | ??????????????????? " ???????????? ??????????????? | | ??????????????????? "????????????? ??????????????? | | ?????????????????????????????????? ??????????????? | | ?????????????????????????????????? ??????????????? | | ?????????????????????????????????????????????????? | | ?????????????????????????????????????????????????? | | ?????????????????????????????????????????????????? | | ?????????????????????????????????????????????????? | | ?????????????????????????????????????????????????? | | ?????????????????????????????????????????????????? | | ?????????????????????????????????????????????????? | | ?????????????????????????????????????????????????? | | ?????????????????????????????????????????????????? | | ?????????????????????????????????????????????????? | | ?????????????????????????????????????????????????? | | ?????????????????????????????????????????????????? | | ?????????????????????????????????????????????????? | +----------------------------------------------------+ Best States ------------- Heat Dissipation 56 Energy Generation 21 Energy Capacity 310 Matter Stores 450 Matter Capacity 450 Sight Range 22 Robot Scan Range 14 Terrain Scan Range 16 Terrain Scan Density 110 Base Temperature (-) 200 EM Shielding 2 Armor Coverage 600 Resistance: KI 20 Resistance: TH 30 Resistance: EX 20 Resistance: EM 20 Resistance: I 20 Resistance: S 20 Resistance: P 20 Propulsion Shielding 33 Utility Shielding 66 Evasion (%) 50 Targeting Accuracy 14 Recoil Reduction 4 Kinecelleration 40 Offensive Hacking 20 Defensive Hacking 12 Item Schematics ----------------- Huge Storage Unit | -8/Materials | Hacked Hacking Suite | -8/Materials | Hacked Field Recycling Unit | -7/Factory | Scanalyzed Robot Schematics ------------------ None Fabricated ------------ G-47 Trooper | x3 | -7/Factory | Preloaded I-36 Angel | x1 | -7/Factory | Preloaded Hacking Suite | x1 | -6/Factory Hacking Suite | x1 | -6/Factory Alien Tech Used ----------------- None Achievements -------------- None Challenges ------------ None Game ------ Seed NeutronMicroExtractor Manual? 0 Play Time 02:22:20 Cumulative 223.7 hours Start 2022.07.31 @ 22:40:20 End 2022.08.01 @ 23:28:43 Sessions 5 Manual Loads 0 Difficulty Adventurer Special Mode None Game No. 59 Rogue 0 Adventurer 53 Explorer 6 Win Type - Total 4 Types 3/0/1/0/0/0/0/0/0 Lore% 57 Gallery% 70 Achievement% 51 Wizard Run 0 Options --------- ASCII 0 Keyboard 0 Movement Mouse Keybinds 0 Fullscreen 2 Font 20/Terminus Map View 66x50 Tactical HUD 1 Map Filters NONE Filters NONE Steam 1 RUN: 9a260ea4-8cd6-4abd-bf0b-fec4f76d1988